fUST/lending_fUST_20250716
["ID","MTS","AMOUNT","RATE_DAILY","PERIOD"]
[372491362,1752663040746,-632.06,0.00023287,2]
[372491364,1752663040755,-1390.3,0.00023287,2]
[372491366,1752663040764,-738.43,0.00023287,2]
[372491368,1752663040774,-460.0,0.00023287,2]
[372491370,1752663040783,-460.0,0.00023287,2]
[372491372,1752663040793,-460.0,0.00023287,2]
[372491374,1752663040802,-151.0,0.000233,9]
[372491376,1752663040812,-768.34910746,0.00023314,9]
[372491378,1752663040822,-500.0,0.00023356,2]
[372491380,1752663040835,-503.0,0.00023456,2]
[372491382,1752663040845,-768.34910746,0.00023486,9]
[372491384,1752663040855,-1003.9999861,0.00023496,2]
[372491386,1752663040865,-873.82,0.000235,7]
[372491388,1752663040875,-21119.35,0.000235,7]
[372491390,1752663040884,-845.86,0.00023561,2]
[372491392,1752663040893,-460.0,0.00023561,2]
[372491394,1752663040903,-460.0,0.00023561,2]
[372491396,1752663040913,-460.0,0.00023561,2]
[372491398,1752663040923,-1046.58,0.00023561,2]
[372491400,1752663040932,-481.44,0.00023561,2]
[372491402,1752663040942,-385.15,0.00023561,2]
[372491404,1752663040951,-2219.29,0.00023561,2]
[372491406,1752663040960,-318.4931091,0.00023561,2]
[372491408,1752663040969,-822.53,0.00023561,2]
[372491410,1752663040979,-690.47,0.00023561,2]
[372491412,1752663040988,-1211.98,0.00023561,2]
[372491414,1752663040998,-735.49,0.00023561,2]
[372491416,1752663041007,-1390.3,0.00023561,2]
[372491418,1752663041016,-632.06,0.00023561,2]
[372491420,1752663041027,-738.43,0.00023561,2]
[372491430,1752663041110,-460.0,0.00023561,2]
[372491432,1752663041130,-498.28933908,0.00023561,2]
[372491434,1752663041140,-460.0,0.00023561,2]
[372491436,1752663041151,-160.0,0.00023573,3]
[372491438,1752663041162,-151.0,0.00023596,7]
[372491441,1752663041175,-151.0,0.00023596,7]
[372491443,1752663041184,-151.0,0.00023596,7]
[372491445,1752663041193,-151.0,0.00023596,7]
[372491447,1752663041202,-151.0,0.00023596,7]
[372491449,1752663041213,-151.0,0.00023596,7]
[372491451,1752663041223,-207.4,0.00023596,2]
[372491453,1752663041233,-500.0,0.00023596,2]
[372491455,1752663041244,-500.0,0.00023596,2]
[372491456,1752663041253,-500.0,0.00023596,2]
[372491458,1752663041262,-500.0,0.00023596,2]
[372491460,1752663041272,-500.0,0.00023596,2]
[372491462,1752663041281,-500.0,0.00023596,2]
[372491464,1752663041291,-500.0,0.00023596,2]
[372491466,1752663041300,-500.0,0.00023596,2]
[372491468,1752663041309,-500.0,0.00023596,2]
[372491470,1752663041319,-500.0,0.00023596,2]
[372491472,1752663041330,-500.0,0.00023596,2]
[372491474,1752663041339,-500.0,0.00023596,2]
[372491476,1752663041349,-500.0,0.00023596,2]
[372491478,1752663041358,-500.0,0.00023596,2]
[372491480,1752663041367,-500.0,0.00023596,2]
[372491482,1752663041376,-500.0,0.00023596,2]
[372491484,1752663041385,-500.0,0.00023596,2]
[372491486,1752663041394,-19564.40556098,0.00023596,2]
[372491488,1752663041403,-15736.32,0.000236,2]
[372491490,1752663041412,-768.34910746,0.00023659,9]
[372491492,1752663041421,-152.501255,0.00023662,10]
[372491494,1752663041430,-989.74,0.000237,7]
[372491496,1752663041440,-286.73992899,0.00023735,2]
[372491498,1752663041449,-151.0,0.000238,8]
[372491500,1752663041459,-768.34910746,0.00023831,10]
[372491502,1752663041468,-845.86,0.00023835,2]
[372491504,1752663041477,-476.09,0.00023835,2]
[372491506,1752663041487,-460.0,0.00023835,2]
[372491508,1752663041497,-460.0,0.00023835,2]
[372491510,1752663041507,-1046.58,0.00023835,2]
[372491512,1752663041517,-481.44,0.00023835,2]
[372491513,1752663041526,-2219.29,0.00023835,2]
[372491515,1752663041538,-822.53,0.00023835,2]
[372491517,1752663041547,-690.47,0.00023835,2]
[372491519,1752663041556,-1211.98,0.00023835,2]
[372491521,1752663041566,-735.49,0.00023835,2]
[372491523,1752663041576,-1390.3,0.00023835,2]
[372491526,1752663041585,-632.06,0.00023835,2]
[372491527,1752663041595,-738.43,0.00023835,2]
[372491529,1752663041604,-460.0,0.00023835,2]
[372491531,1752663041613,-209.02561506,0.00023835,2]
[372491533,1752663041623,-215.5496034,0.00024,7]
[372491535,1752663041633,-151.0,0.00024,6]
[372491537,1752663041642,-520.85416667,0.00024,7]
[372491539,1752663041651,-768.34910746,0.00024003,10]
[372491541,1752663041661,-845.86,0.00024109,2]
[372491543,1752663041670,-487.57695939,0.00024109,2]
[372491545,1752663041680,-460.0,0.00024109,2]
[372491547,1752663041689,-1046.58,0.00024109,2]
[372491549,1752663041698,-481.44,0.00024109,2]
[372491551,1752663041708,-2219.29,0.00024109,2]
[372491553,1752663041718,-822.53,0.00024109,2]
[372491555,1752663041727,-690.47,0.00024109,2]
[372491557,1752663041736,-1211.98,0.00024109,2]
[372491559,1752663041745,-735.49,0.00024109,2]
[372491561,1752663041754,-1390.3,0.00024109,2]
[372491564,1752663041764,-632.06,0.00024109,2]
[372491566,1752663041774,-738.43,0.00024109,2]
[372491567,1752663041783,-460.0,0.00024109,2]
[372491569,1752663041792,-768.34910746,0.00024176,10]
[372491571,1752663041802,-151.0,0.000243,7]
[372491573,1752663041811,-968.0,0.0002431,2]
[372491576,1752663041822,-407.0,0.0002431,2]
[372491578,1752663041832,-152.501255,0.00024324,10]
[372491580,1752663041842,-768.34910746,0.00024348,11]
[372491582,1752663041852,-620.58388845,0.00024383,2]
[372491584,1752663041862,-845.86,0.00024383,2]
[372491586,1752663041871,-460.0,0.00024383,2]
[372491588,1752663041881,-1046.58,0.00024383,2]
[372491590,1752663041890,-481.44,0.00024383,2]
[372491592,1752663041900,-2219.29,0.00024383,2]
[372491594,1752663041909,-822.53,0.00024383,2]
[372491596,1752663041918,-690.47,0.00024383,2]
[372491598,1752663041928,-1211.98,0.00024383,2]
[372491600,1752663041937,-735.49,0.00024383,2]
[372491602,1752663041947,-1390.3,0.00024383,2]
[372491604,1752663041956,-632.06,0.00024383,2]
[372491606,1752663041965,-738.43,0.00024383,2]
[372491608,1752663041974,-460.0,0.00024383,2]
[372491610,1752663041984,-17664.72973427,0.0002439,3]
[372491611,1752663041993,-838.84061749,0.0002439,3]
[372491613,1752663042002,-520.85416667,0.0002439,3]
[372491615,1752663042012,-476.07036022,0.0002439,3]
[372491617,1752663042022,-12605.49131908,0.0002439,3]
[372491619,1752663042031,-160.0,0.0002439,3]
[372491621,1752663042040,-214.40824756,0.0002439,3]
[372491623,1752663042050,-151.0,0.000244,7]
[372491626,1752663042059,-151.0,0.000244,7]
[372491628,1752663042070,-151.0,0.000245,7]
[372491630,1752663042079,-151.0,0.000245,7]
[372491632,1752663042088,-223.64827588,0.000245,7]
[372491633,1752663042097,-1091.036476,0.000245,8]
[372491636,1752663042107,-768.34910746,0.00024521,11]
[372491637,1752663042116,-584.0,0.00024623,2]
[372491639,1752663042125,-82982.17706865,0.00024649,2]
[372491641,1752663042135,-68235.13315208,0.0002465,2]
[372491643,1752663042145,-151.0,0.0002465,7]
[372491645,1752663042153,-151.0,0.0002465,7]
[372491648,1752663042166,-151.0,0.0002465,7]
[372491650,1752663042176,-151.0,0.0002465,7]
[372491652,1752663042186,-151.0,0.0002465,7]
[372491653,1752663042195,-151.0,0.0002465,7]
[372491655,1752663042205,-151.0,0.0002465,7]
[372491657,1752663042215,-151.0,0.00024657,7]
[372491660,1752663042224,-151.0,0.00024657,7]
[372491662,1752663042233,-151.0,0.00024657,7]
[372491664,1752663042245,-151.0,0.00024657,7]
[372491665,1752663042255,-161.343582,0.00024657,7]
[372491667,1752663042264,-350.27166094,0.00024657,2]
[372491670,1752663042274,-845.86,0.00024657,2]
[372491672,1752663042283,-460.0,0.00024657,2]
[372491674,1752663042293,-1046.58,0.00024657,2]
[372491676,1752663042302,-481.44,0.00024657,2]
[372491677,1752663042311,-2219.29,0.00024657,2]
[372491679,1752663042321,-822.53,0.00024657,2]
[372491681,1752663042330,-690.47,0.00024657,2]
[372491684,1752663042340,-1211.98,0.00024657,2]
[372491686,1752663042350,-735.49,0.00024657,2]
[372491688,1752663042359,-1390.3,0.00024657,2]
[372491690,1752663042369,-632.06,0.00024657,2]
[372491692,1752663042378,-738.43,0.00024657,2]
[372491694,1752663042388,-490.5,0.00024657,2]
[372491697,1752663042397,-285.7056492,0.00024658,2]
[372491700,1752663042408,-175.957,0.00024658,2]
[372491702,1752663042417,-286.73992899,0.00024667,2]
[372491704,1752663042426,-500.0,0.0002468,2]
[372491706,1752663042436,-151.0,0.0002468,7]
[372491708,1752663042446,-768.34910746,0.00024693,11]
[372491710,1752663042456,-15736.32,0.000247,2]
[372491712,1752663042465,-873.82,0.000247,7]
[372491714,1752663042475,-823.0,0.000247,2]
[372491716,1752663042484,-21119.35,0.000247,7]
[372491718,1752663042493,-151.0,0.000248,7]
[372491720,1752663042502,-151.0,0.000248,7]
[372491722,1752663042512,-151.0,0.000248,7]
[372491724,1752663042521,-151.0,0.000248,3]
[372491726,1752663042530,-151.0,0.000248,7]
[372491728,1752663042540,-240.77841824,0.00024831,2]
[372491730,1752663042549,-152.501255,0.00024852,2]
[372491732,1752663042558,-768.34910746,0.00024866,12]
[372491734,1752663042567,-25631.63625377,0.0002487,2]
[372491736,1752663042578,-151.0,0.0002487,7]
[372491738,1752663042587,-190.515088,0.0002487,7]
[372491740,1752663042597,-190.515088,0.0002487,7]
[372491742,1752663042606,-2734.299575,0.0002487,7]
[372491744,1752663042615,-2734.299575,0.0002487,7]
[372491746,1752663042625,-75317.15,0.00024898,7]
[372491748,1752663042635,-500.0,0.00024899,10]
[372491750,1752663042644,-693.94,0.000249,2]
[372491752,1752663042653,-151.0,0.000249,7]
[372491754,1752663042663,-151.0,0.000249,7]
[372491755,1752663042673,-151.0,0.000249,7]
[372491757,1752663042683,-151.0,0.000249,7]
[372491759,1752663042692,-151.0,0.000249,7]
[372491761,1752663042702,-151.0,0.000249,7]
[372491763,1752663042712,-151.0,0.000249,7]
[372491765,1752663042721,-151.0,0.000249,7]
[372491766,1752663042730,-190.515088,0.000249,7]
[372491767,1752663042738,-190.515088,0.000249,7]
[372491768,1752663042747,-2734.299575,0.000249,7]
[372491769,1752663042756,-2734.299575,0.000249,7]
[372491770,1752663042765,-151.0,0.000249,7]
[372491771,1752663042774,-151.0,0.000249,7]
[372491772,1752663042783,-151.0,0.000249,7]
[372491773,1752663042792,-151.0,0.000249,3]
[372491774,1752663042801,-151.0,0.000249,7]
[372491775,1752663042811,-151.0,0.000249,7]
[372491776,1752663042820,-151.0,0.000249,7]
[372491777,1752663042831,-151.0,0.000249,7]
[372491778,1752663042840,-238.780174,0.000249,7]
[372491779,1752663042851,-151.0,0.000249,7]
[372491780,1752663042860,-151.0,0.000249,7]
[372491781,1752663042869,-82515.92374638,0.000249,2]
[372491782,1752663042878,-989.74,0.000249,7]
[372491783,1752663042888,-722038.963657,0.000249,2]
[372491784,1752663042897,-1068.72256492,0.000249,2]
[372491785,1752663042906,-240.77841819,0.00024916,2]
[372491786,1752663042915,-845.86,0.00024931,2]
[372491787,1752663042924,-460.0,0.00024931,2]
[372491788,1752663042933,-1046.58,0.00024931,2]
[372491789,1752663042942,-481.44,0.00024931,2]
[372491790,1752663042951,-2219.29,0.00024931,2]
[372491791,1752663042960,-822.53,0.00024931,2]
[372491792,1752663042969,-690.47,0.00024931,2]
[372491798,1752663042978,-1211.98,0.00024931,2]
[372491800,1752663043063,-735.49,0.00024931,2]
[372491802,1752663043073,-1390.3,0.00024931,2]
[372491804,1752663043083,-632.06,0.00024931,2]
[372491806,1752663043093,-738.43,0.00024931,2]
[372491808,1752663043102,-500.0,0.00024932,2]
[372491810,1752663043112,-151.0,0.00024932,2]
[372491812,1752663043121,-151.0,0.00024932,2]
[372491814,1752663043130,-257.47516588,0.00024932,2]
[372491816,1752663043140,-871.0,0.00024932,2]
[372491818,1752663043150,-500.0,0.00024932,2]
[372491820,1752663043160,-151.0,0.00024932,2]
[372491822,1752663043172,-151.0,0.00024932,2]
[372491825,1752663043182,-151.0,0.00024932,2]
[372491827,1752663043191,-500.0,0.00024932,2]
[372491830,1752663043201,-500.0,0.00024932,2]
[372491833,1752663043212,-151.0,0.00024932,2]
[372491835,1752663043221,-500.0,0.00024932,2]
[372491837,1752663043231,-151.0,0.00024932,2]
[372491839,1752663043242,-285.48423767,0.00024932,2]
[372491841,1752663043251,-151.0,0.00024932,2]
[372491843,1752663043260,-168.0,0.00024945,2]
[372491845,1752663043270,-151.0,0.00024956,7]
[372491847,1752663043279,-215.0738,0.00024965,2]
[372491849,1752663043289,-168.0,0.00024975,2]
[372491851,1752663043299,-152.501255,0.00024986,10]
[372491853,1752663043309,-11379.49142229,0.00025,2]
[372491855,1752663043321,-44022.99835106,0.00025,60]
[372491857,1752663043332,-2617.1645924,0.00025,2]
[372491859,1752663043341,-207.53549272,0.00025,2]
[372491861,1752663043351,-10364.0,0.00025,2]
[372491863,1752663043360,-358.31809304,0.00025,2]
[372491864,1752663043370,-500.0,0.00025,2]
[372491866,1752663043379,-300.0,0.00025,30]
[372491868,1752663043388,-120000.0,0.00025,2]
[372491870,1752663043398,-600.0,0.00025,2]
[372491872,1752663043406,-2398.48646767,0.00025,2]
[372491874,1752663043414,-4129.0,0.00025,30]
[372491876,1752663043423,-500.0,0.00025,2]
[372491878,1752663043431,-501.76217352,0.00025,2]
[372491880,1752663043441,-161.0,0.00025,7]
[372491882,1752663043449,-500.0,0.00025,9]
[372491884,1752663043458,-161.0,0.00025,7]
[372491886,1752663043467,-1532.769414,0.00025,2]
[372491888,1752663043475,-401.495329,0.00025,2]
[372491890,1752663043485,-500.0,0.00025,9]
[372491892,1752663043494,-161.0,0.00025,7]
[372491894,1752663043502,-240.77841819,0.00025001,2]
[372491896,1752663043514,-768.34910746,0.00025038,12]
[372491898,1752663043522,-168.0,0.00025043,2]
[372491900,1752663043531,-152.501255,0.0002505,30]
[372491902,1752663043539,-152.501255,0.00025053,2]
[372491904,1752663043548,-240.77841819,0.00025086,2]
[372491906,1752663043557,-152.501255,0.000251,30]
[372491908,1752663043566,-168.0,0.00025115,2]
[372491910,1752663043575,-152.501255,0.00025143,7]
[372491911,1752663043584,-152.501255,0.0002515,30]
[372491913,1752663043593,-168.0,0.00025162,2]
[372491915,1752663043603,-240.77841819,0.00025171,2]
[372491917,1752663043612,-159.6,0.000252,2]
[372491919,1752663043621,-157.46,0.000252,14]
[372491921,1752663043630,-2000.0,0.000252,2]
[372491923,1752663043640,-152.501255,0.000252,30]
[372491925,1752663043649,-845.86,0.00025205,2]
[372491927,1752663043658,-347.000017,0.00025205,2]
[372491929,1752663043668,-1046.58,0.00025205,2]
[372491931,1752663043677,-481.44,0.00025205,2]
[372491933,1752663043686,-2219.29,0.00025205,2]
[372491936,1752663043695,-822.53,0.00025205,2]
[372491938,1752663043703,-690.47,0.00025205,2]
[372491939,1752663043710,-1211.98,0.00025205,2]
[372491941,1752663043718,-735.49,0.00025205,2]
[372491943,1752663043727,-1390.3,0.00025205,2]
[372491945,1752663043735,-632.06,0.00025205,2]
[372491947,1752663043742,-738.43,0.00025205,2]
[372491949,1752663043751,-500.0,0.00025206,2]
[372491952,1752663043759,-199.45204417,0.00025206,2]
[372491954,1752663043767,-198.0,0.00025206,2]
[372491955,1752663043776,-871.0,0.00025206,2]
[372491957,1752663043785,-500.0,0.00025206,2]
[372491959,1752663043796,-151.0,0.00025206,2]
[372491961,1752663043806,-275.53793141,0.00025206,2]
[372491963,1752663043815,-190.36921616,0.00025206,2]
[372491965,1752663043824,-500.0,0.00025206,2]
[372491967,1752663043835,-500.0,0.00025206,2]
[372491969,1752663043844,-151.0,0.00025206,2]
[372491971,1752663043854,-500.0,0.00025206,2]
[372491973,1752663043863,-151.0,0.00025206,2]
[372491975,1752663043873,-250.0,0.00025208,2]
[372491977,1752663043882,-205.0,0.0002521,2]
[372491979,1752663043891,-768.34910746,0.0002521,12]
[372491981,1752663043900,-151.0,0.00025231,7]
[372491983,1752663043909,-168.0,0.00025243,2]
[372491985,1752663043919,-160.0,0.00025245,4]
[372491987,1752663043928,-161.00384161,0.00025245,5]
[372491989,1752663043937,-152.501255,0.00025255,2]
[372491991,1752663043946,-240.77841819,0.00025255,2]
[372491993,1752663043956,-3121.60424415,0.00025297,2]
[372491995,1752663043965,-2000.0,0.000253,2]
[372491997,1752663043974,-2000.0,0.000253,2]
[372491999,1752663043983,-763.18,0.000253,31]
[372492001,1752663043993,-763.18,0.000253,31]
[372492003,1752663044003,-763.18,0.000253,31]
[372492005,1752663044013,-763.18,0.000253,31]
[372492007,1752663044022,-763.18,0.000253,31]
[372492009,1752663044032,-763.18,0.000253,31]
[372492011,1752663044042,-763.18,0.000253,31]
[372492013,1752663044051,-763.18,0.000253,31]
[372492015,1752663044061,-763.18,0.000253,31]
[372492017,1752663044070,-763.18,0.000253,31]
[372492019,1752663044080,-763.18,0.000253,31]
[372492021,1752663044090,-763.18,0.000253,31]
[372492023,1752663044100,-763.18,0.000253,31]
[372492025,1752663044110,-763.18,0.000253,31]
[372492027,1752663044120,-763.18,0.000253,31]
[372492029,1752663044130,-763.18,0.000253,31]
[372492031,1752663044139,-605.54590566,0.00025311,14]
[372492033,1752663044149,-168.0,0.00025315,2]
[372492035,1752663044159,-240.77841819,0.0002534,2]
[372492037,1752663044174,-168.0,0.00025345,2]
[372492039,1752663044183,-768.34910746,0.00025383,13]
[372492041,1752663044193,-152.501255,0.00025397,7]
[372492043,1752663044203,-900.0,0.00025402,2]
[372492045,1752663044213,-240.77841819,0.00025425,2]
[372492047,1752663044222,-900.0,0.00025431,2]
[372492049,1752663044231,-194.55252496,0.00025435,2]
[372492051,1752663044241,-168.0,0.00025436,2]
[372492053,1752663044250,-152.501255,0.00025456,2]
[372492055,1752663044260,-168.0,0.00025476,2]
[372492057,1752663044271,-845.87105045,0.00025479,2]
[372492059,1752663044280,-1046.60046433,0.00025479,2]
[372492061,1752663044289,-481.62612597,0.00025479,2]
[372492063,1752663044299,-2219.32176666,0.00025479,2]
[372492065,1752663044308,-822.69501154,0.00025479,2]
[372492067,1752663044318,-690.58018953,0.00025479,2]
[372492068,1752663044329,-1212.17508834,0.00025479,2]
[372492070,1752663044339,-735.5538658,0.00025479,2]
[372492072,1752663044350,-1390.48507612,0.00025479,2]
[372492074,1752663044360,-632.12791,0.00025479,2]
[372492076,1752663044369,-738.59052557,0.00025479,2]
[372492078,1752663044379,-500.0,0.0002548,2]
[372492080,1752663044389,-871.0,0.0002548,2]
[372492082,1752663044399,-500.0,0.0002548,2]
[372492084,1752663044409,-198.0,0.0002548,2]
[372492086,1752663044418,-500.0,0.0002548,2]
[372492088,1752663044427,-287.24415917,0.0002548,2]
[372492090,1752663044436,-151.0,0.0002548,2]
[372492092,1752663044446,-500.0,0.0002548,2]
[372492094,1752663044455,-151.0,0.0002548,2]
[372492096,1752663044465,-500.0,0.00025483,2]
[372492098,1752663044475,-168.0,0.00025491,2]
[372492100,1752663044484,-1000.0,0.000255,30]
[372492102,1752663044494,-1000.0,0.000255,30]
[372492104,1752663044504,-1000.0,0.000255,30]
[372492106,1752663044513,-1000.0,0.000255,10]
[372492108,1752663044523,-151.0,0.00025507,7]
[372492110,1752663044533,-240.77841819,0.0002551,2]
[372492112,1752663044542,-1600.0,0.00025512,2]
[372492114,1752663044551,-168.0,0.00025517,2]
[372492116,1752663044562,-205.0,0.0002552,2]
[372492118,1752663044571,-210.0,0.0002552,2]
[372492120,1752663044580,-152.501255,0.00025522,20]
[372492122,1752663044590,-152.501255,0.00025522,20]
[372492124,1752663044599,-152.501255,0.00025522,20]
[372492126,1752663044608,-152.501255,0.00025522,20]
[372492128,1752663044617,-900.0,0.0002553,2]
[372492130,1752663044628,-500.0,0.00025548,2]
[372492132,1752663044640,-3000.0,0.0002555,2]
[372492134,1752663044649,-768.34910746,0.00025555,13]
[372492136,1752663044658,-432.48410953,0.00025566,2]
[372492138,1752663044667,-500.0,0.00025583,2]
[372492140,1752663044677,-2620.46,0.00025586,6]
[372492142,1752663044686,-240.77841819,0.00025595,2]
[372492144,1752663044695,-286.73992899,0.00025598,2]
[372492146,1752663044705,-151.0,0.000256,7]
[372492148,1752663044714,-151.0,0.000256,3]
[372492150,1752663044723,-151.0,0.000256,7]
[372492152,1752663044732,-151.0,0.000256,7]
[372492154,1752663044741,-258.37421183,0.000256,7]
[372492156,1752663044751,-151.0,0.000256,7]
[372492165,1752663044838,-151.0,0.000256,7]
[372492167,1752663044848,-151.0,0.000256,7]
[372492169,1752663044857,-763.18,0.000256,31]
[372492171,1752663044867,-763.18,0.000256,31]
[372492173,1752663044877,-763.18,0.000256,31]
[372492175,1752663044887,-763.18,0.000256,31]
[372492177,1752663044896,-763.18,0.000256,31]
[372492179,1752663044906,-763.18,0.000256,31]
[372492181,1752663044916,-763.18,0.000256,31]
[372492183,1752663044926,-763.18,0.000256,31]
[372492185,1752663044936,-763.18,0.000256,31]
[372492187,1752663044946,-763.18,0.000256,31]
[372492190,1752663044956,-763.18,0.000256,31]
[372492191,1752663044966,-763.18,0.000256,31]
[372492193,1752663044976,-763.18,0.000256,31]
[372492195,1752663044986,-763.18,0.000256,31]
[372492197,1752663044995,-763.18,0.000256,31]
[372492200,1752663045005,-763.18,0.000256,31]
[372492201,1752663045015,-763.18,0.000256,31]
[372492203,1752663045024,-763.18,0.000256,31]
[372492205,1752663045034,-763.18,0.000256,31]
[372492207,1752663045043,-763.18,0.000256,31]
[372492209,1752663045052,-763.18,0.000256,31]
[372492211,1752663045062,-763.18,0.000256,31]
[372492213,1752663045071,-763.18,0.000256,31]
[372492215,1752663045081,-763.18,0.000256,31]
[372492217,1752663045091,-168.0,0.00025601,2]
[372492219,1752663045100,-500.0,0.00025601,2]
[372492221,1752663045109,-1600.0,0.00025602,2]
[372492223,1752663045119,-900.0,0.00025632,2]
[372492225,1752663045128,-1600.0,0.00025636,2]
[372492227,1752663045138,-168.0,0.00025643,2]
[372492229,1752663045147,-152.501255,0.00025648,10]
[372492231,1752663045158,-152.501255,0.0002565,7]
[372492233,1752663045171,-900.0,0.00025676,2]
[372492235,1752663045181,-2620.46,0.00025686,5]
[372492237,1752663045190,-151.997121,0.00025694,7]
[372492239,1752663045201,-258.771837,0.00025694,7]
[372492241,1752663045211,-258.771837,0.00025694,7]
[372492243,1752663045221,-258.771837,0.00025694,7]
[372492245,1752663045231,-258.771837,0.00025694,7]
[372492247,1752663045242,-258.771837,0.00025694,7]
[372492249,1752663045252,-258.771837,0.00025694,7]
[372492251,1752663045261,-258.771837,0.00025694,7]
[372492252,1752663045270,-258.771837,0.00025694,7]
[372492254,1752663045281,-258.771837,0.00025694,7]
[372492256,1752663045291,-258.771837,0.00025694,7]
[372492258,1752663045301,-258.771837,0.00025694,7]
[372492260,1752663045310,-258.771837,0.00025694,7]
[372492262,1752663045320,-258.771837,0.00025694,7]
[372492264,1752663045330,-258.771837,0.00025694,7]
[372492266,1752663045339,-258.771837,0.00025694,7]
[372492269,1752663045348,-258.771837,0.00025694,7]
[372492273,1752663045359,-258.771837,0.00025694,7]
[372492276,1752663045368,-258.771837,0.00025694,7]
[372492278,1752663045378,-258.771837,0.00025694,7]
[372492280,1752663045387,-258.771842,0.00025694,7]
[372492282,1752663045396,-166.625948,0.00025694,7]
[372492284,1752663045406,-166.625948,0.00025694,7]
[372492286,1752663045416,-166.625948,0.00025694,7]
[372492287,1752663045425,-166.625948,0.00025694,7]
[372492289,1752663045434,-166.625948,0.00025694,7]
[372492290,1752663045444,-166.625948,0.00025694,7]
[372492291,1752663045454,-166.625948,0.00025694,7]
[372492292,1752663045463,-166.625948,0.00025694,7]
[372492293,1752663045472,-166.625948,0.00025694,7]
[372492295,1752663045483,-166.625948,0.00025694,7]
[372492297,1752663045495,-166.625948,0.00025694,7]
[372492299,1752663045504,-166.625948,0.00025694,7]
[372492301,1752663045513,-166.625948,0.00025694,7]
[372492303,1752663045522,-166.625948,0.00025694,7]
[372492305,1752663045532,-166.625948,0.00025694,7]
[372492307,1752663045542,-166.625948,0.00025694,7]
[372492309,1752663045552,-166.625948,0.00025694,7]
[372492311,1752663045561,-166.625948,0.00025694,7]
[372492313,1752663045571,-166.625948,0.00025694,7]
[372492315,1752663045581,-166.625956,0.00025694,7]
[372492317,1752663045590,-151.0,0.00025694,7]
[372492319,1752663045599,-151.0,0.00025694,7]
[372492321,1752663045608,-151.0,0.00025694,7]
[372492323,1752663045617,-151.0,0.00025694,7]
[372492325,1752663045625,-151.0,0.00025694,7]
[372492327,1752663045634,-151.0,0.00025694,7]
[372492329,1752663045644,-151.0,0.00025694,7]
[372492331,1752663045652,-151.0,0.00025694,7]
[372492333,1752663045662,-151.0,0.00025694,7]
[372492335,1752663045671,-151.0,0.00025695,7]
[372492337,1752663045680,-157.145541,0.00025695,7]
[372492339,1752663045689,-151.0,0.00025695,7]
[372492341,1752663045698,-151.0,0.00025695,7]
[372492343,1752663045707,-151.0,0.00025695,7]
[372492345,1752663045716,-151.0,0.00025695,7]
[372492347,1752663045725,-151.0,0.00025695,7]
[372492349,1752663045734,-151.0,0.00025695,7]
[372492350,1752663045743,-151.0,0.00025695,7]